[Event "Titled Tuesday Blitz March 28 Late 2023"]
[White "Krallis, Christos"]
[Black "Cori T., Deysi"]
[WhiteFideId "4298896"]
[BlackFideId "3801934"]
[WhiteElo "2243"]
[BlackElo "2292"]
[Result "0-1"]
[Round "04"]
[TimeControl "180+2"]
[Date "2023.03.28"]
[WhiteClock "0:00:05"]
[BlackClock "0:00:17"]

1. Nc3 {[%clk 0:03:00]}  g6 {[%clk 0:02:59]} 2. d4 {[%clk 0:02:59]}  Bg7 {[%clk 0:02:59]} 3. Bf4 {[%clk 0:03:00]}  d6 {[%clk 0:02:59]} 4. Qd2 {[%clk 0:03:00]}  c6 {[%clk 0:02:59]} 5. O-O-O {[%clk 0:03:00]}  b5 {[%clk 0:02:58]} 6. e4 {[%clk 0:02:57]}  b4 {[%clk 0:02:58]} 7. Nce2 {[%clk 0:02:56]}  a5 {[%clk 0:02:52]} 8. Kb1 {[%clk 0:02:56]}  Nd7 {[%clk 0:02:51]} 9. Nc1 {[%clk 0:02:53]}  Nb6 {[%clk 0:02:50]} 10. h4 {[%clk 0:02:50]}  h5 {[%clk 0:02:49]} 11. Nf3 {[%clk 0:02:47]}  Nf6 {[%clk 0:02:47]} 12. Ng5 {[%clk 0:02:45]}  Ba6 {[%clk 0:02:38]} 13. f3 {[%clk 0:02:43]}  Bxf1 {[%clk 0:02:37]} 14. Rhxf1 {[%clk 0:02:44]}  a4 {[%clk 0:02:23]} 15. Qxb4 {[%clk 0:02:37]}  Rb8 {[%clk 0:02:22]} 16. Qc3 {[%clk 0:02:36]}  Qd7 {[%clk 0:02:16]} 17. a3 {[%clk 0:02:28]}  O-O {[%clk 0:02:15]} 18. Qd3 {[%clk 0:02:19]}  Qb7 {[%clk 0:02:15]} 19. Qc3 {[%clk 0:01:28]}  Nbd5 {[%clk 0:02:11]} 20. exd5 {[%clk 0:01:14]}  Nxd5 {[%clk 0:02:10]} 21. Bd2 {[%clk 0:01:15]}  c5 {[%clk 0:01:56]} 22. Nd3 {[%clk 0:00:57]}  Nxc3+ {[%clk 0:01:48]} 23. Bxc3 {[%clk 0:00:57]}  Bxd4 {[%clk 0:01:39]} 24. Bxd4 {[%clk 0:00:57]}  cxd4 {[%clk 0:01:40]} 25. g4 {[%clk 0:00:58]}  hxg4 {[%clk 0:01:36]} 26. fxg4 {[%clk 0:00:58]}  e5 {[%clk 0:01:19]} 27. Rde1 {[%clk 0:00:49]}  Rfc8 {[%clk 0:00:46]} 28. Ne4 {[%clk 0:00:45]}  Qc6 {[%clk 0:00:40]} 29. Rf2 {[%clk 0:00:43]}  Kg7 {[%clk 0:00:37]} 30. h5 {[%clk 0:00:39]}  Rb7 {[%clk 0:00:36]} 31. Rh2 {[%clk 0:00:18]}  Rh8 {[%clk 0:00:36]} 32. Ree2 {[%clk 0:00:15]}  f6 {[%clk 0:00:35]} 33. Rhf2 {[%clk 0:00:13]}  Rf7 {[%clk 0:00:33]} 34. Ng3 {[%clk 0:00:12]}  Qc8 {[%clk 0:00:23]} 35. hxg6 {[%clk 0:00:12]}  Kxg6 {[%clk 0:00:24]} 36. Nf5 {[%clk 0:00:13]}  Qc6 {[%clk 0:00:20]} 37. Ka2 {[%clk 0:00:11]}  Rfh7 {[%clk 0:00:20]} 38. Re1 {[%clk 0:00:10]}  Rb8 {[%clk 0:00:18]} 39. Rh1 {[%clk 0:00:09]}  Qxh1 {[%clk 0:00:18]} 40. Nxd6 {[%clk 0:00:06]}  Qd5+ {[%clk 0:00:18]} 41. Ka1 {[%clk 0:00:05]}  Qxd6 {[%clk 0:00:18]} 42. Rf1 {[%clk 0:00:05]}  Qd5 {[%clk 0:00:17]} 43. g5 {[%clk 0:00:05]}  Rh1 {[%clk 0:00:17]} 0-1


[Site "https://www.chess.com"]

[Event "Titled Tuesday Blitz March 28 Late 2023"]
[White "Bilan, Danila"]
[Black "Adewumi, Tanitoluwa"]
[WhiteFideId "24161918"]
[BlackFideId "30966396"]
[WhiteElo "2182"]
[BlackElo "2747"]
[Result "0-1"]
[Round "04"]
[TimeControl "180+2"]
[Date "2023.03.28"]
[WhiteClock "0:00:03"]
[BlackClock "0:00:11"]

1. d4 {[%clk 0:03:00]}  Nf6 {[%clk 0:02:49]} 2. Nf3 {[%clk 0:02:58]}  e6 {[%clk 0:02:40]} 3. g3 {[%clk 0:02:58]}  c6 {[%clk 0:02:34]} 4. Bg2 {[%clk 0:02:54]}  d5 {[%clk 0:02:33]} 5. O-O {[%clk 0:02:54]}  Bd6 {[%clk 0:02:16]} 6. Nbd2 {[%clk 0:02:52]}  O-O {[%clk 0:02:09]} 7. c4 {[%clk 0:02:52]}  Nbd7 {[%clk 0:02:03]} 8. Qc2 {[%clk 0:02:50]}  b6 {[%clk 0:01:59]} 9. e4 {[%clk 0:02:40]}  dxe4 {[%clk 0:01:57]} 10. Nxe4 {[%clk 0:02:41]}  Nxe4 {[%clk 0:01:57]} 11. Qxe4 {[%clk 0:02:42]}  Bb7 {[%clk 0:01:58]} 12. Rd1 {[%clk 0:02:18]}  Nf6 {[%clk 0:01:55]} 13. Qc2 {[%clk 0:02:08]}  Qe7 {[%clk 0:01:51]} 14. b3 {[%clk 0:01:52]}  c5 {[%clk 0:01:48]} 15. Bb2 {[%clk 0:01:50]}  Rfd8 {[%clk 0:01:45]} 16. dxc5 {[%clk 0:01:18]}  Bxc5 {[%clk 0:01:44]} 17. Ng5 {[%clk 0:01:15]}  Bxg2 {[%clk 0:01:39]} 18. Kxg2 {[%clk 0:01:09]}  h6 {[%clk 0:01:06]} 19. Ne4 {[%clk 0:00:45]}  Ng4 {[%clk 0:00:51]} 20. h3 {[%clk 0:00:35]}  Nf6 {[%clk 0:00:35]} 21. Nxf6+ {[%clk 0:00:22]}  gxf6 {[%clk 0:00:33]} 22. Qc3 {[%clk 0:00:19]}  Qb7+ {[%clk 0:00:27]} 23. Kh2 {[%clk 0:00:14]}  e5 {[%clk 0:00:26]} 24. Qc1 {[%clk 0:00:07]}  Qf3 {[%clk 0:00:20]} 25. Rf1 {[%clk 0:00:04]}  Bxf2 {[%clk 0:00:13]} 26. Rxf2 {[%clk 0:00:02]}  Qxf2+ {[%clk 0:00:13]} 27. Kh1 {[%clk 0:00:03]}  Rd2 {[%clk 0:00:11]} 0-1


[Site "https://www.chess.com"]

[Event "Titled Tuesday Blitz March 28 Late 2023"]
[White "Flores, Diego"]
[Black "cryptoguru02"]
[WhiteFideId "108049"]
[WhiteElo "2606"]
[BlackElo "2547"]
[Result "1-0"]
[Round "04"]
[TimeControl "180+2"]
[Date "2023.03.28"]
[WhiteClock "0:01:12"]
[BlackClock "0:00:37"]

1. c4 {[%clk 0:03:00]}  e6 {[%clk 0:02:58]} 2. d4 {[%clk 0:02:56]}  d5 {[%clk 0:02:57]} 3. Nc3 {[%clk 0:02:56]}  Be7 {[%clk 0:02:58]} 4. Nf3 {[%clk 0:02:55]}  Nf6 {[%clk 0:02:57]} 5. Bg5 {[%clk 0:02:55]}  h6 {[%clk 0:02:57]} 6. Bh4 {[%clk 0:02:55]}  O-O {[%clk 0:02:56]} 7. Qc2 {[%clk 0:02:56]}  b6 {[%clk 0:02:50]} 8. O-O-O {[%clk 0:02:53]}  Bb7 {[%clk 0:02:47]} 9. Bxf6 {[%clk 0:02:53]}  Bxf6 {[%clk 0:02:46]} 10. e4 {[%clk 0:02:54]}  dxe4 {[%clk 0:02:34]} 11. Nxe4 {[%clk 0:02:55]}  Nd7 {[%clk 0:02:32]} 12. Bd3 {[%clk 0:02:50]}  Be7 {[%clk 0:02:30]} 13. h4 {[%clk 0:02:45]}  c5 {[%clk 0:02:05]} 14. dxc5 {[%clk 0:01:58]}  bxc5 {[%clk 0:02:06]} 15. Neg5 {[%clk 0:01:56]}  Qc7 {[%clk 0:01:49]} 16. Kb1 {[%clk 0:01:48]}  Rad8 {[%clk 0:01:28]} 17. Bh7+ {[%clk 0:01:41]}  Kh8 {[%clk 0:01:28]} 18. Bg8 {[%clk 0:01:41]}  Nf6 {[%clk 0:01:11]} 19. Bxf7 {[%clk 0:01:35]}  Rxf7 {[%clk 0:00:58]} 20. Nxf7+ {[%clk 0:01:34]}  Kg8 {[%clk 0:00:59]} 21. Nxd8 {[%clk 0:01:17]}  Be4 {[%clk 0:00:52]} 22. Rd3 {[%clk 0:01:17]}  Bxd8 {[%clk 0:00:52]} 23. Rhd1 {[%clk 0:01:15]}  Be7 {[%clk 0:00:51]} 24. Ka1 {[%clk 0:01:15]}  Ng4 {[%clk 0:00:45]} 25. Qe2 {[%clk 0:01:14]}  Bf5 {[%clk 0:00:37]} 26. Rd7 {[%clk 0:01:12]} 1-0


[Site "https://www.chess.com"]

[Event "Titled Tuesday Blitz March 28 Late 2023"]
[White "Lamard, Guillaume"]
[Black "Dobre, Claudiu-Cristian"]
[WhiteFideId "600261"]
[BlackFideId "1211854"]
[WhiteElo "2413"]
[BlackElo "2207"]
[Result "1/2-1/2"]
[Round "04"]
[TimeControl "180+2"]
[Date "2023.03.28"]
[WhiteClock "0:00:08"]
[BlackClock "0:00:09"]

1. d4 {[%clk 0:03:00]}  f5 {[%clk 0:02:55]} 2. Nf3 {[%clk 0:02:58]}  Nf6 {[%clk 0:02:55]} 3. Bf4 {[%clk 0:02:58]}  d6 {[%clk 0:02:54]} 4. h3 {[%clk 0:02:58]}  g6 {[%clk 0:02:49]} 5. e3 {[%clk 0:02:58]}  Bg7 {[%clk 0:02:49]} 6. Be2 {[%clk 0:02:49]}  O-O {[%clk 0:02:47]} 7. O-O {[%clk 0:02:48]}  h6 {[%clk 0:02:19]} 8. Bh2 {[%clk 0:02:46]}  Qe8 {[%clk 0:01:56]} 9. c4 {[%clk 0:02:45]}  Ne4 {[%clk 0:01:47]} 10. Nbd2 {[%clk 0:02:28]}  Nxd2 {[%clk 0:01:47]} 11. Qxd2 {[%clk 0:02:28]}  c6 {[%clk 0:01:42]} 12. Rfd1 {[%clk 0:02:11]}  Nd7 {[%clk 0:01:40]} 13. Rac1 {[%clk 0:02:09]}  Nf6 {[%clk 0:01:40]} 14. c5 {[%clk 0:01:48]}  Ne4 {[%clk 0:01:40]} 15. Qc2 {[%clk 0:01:48]}  g5 {[%clk 0:01:36]} 16. Bd3 {[%clk 0:01:43]}  d5 {[%clk 0:01:36]} 17. Ne5 {[%clk 0:01:43]}  e6 {[%clk 0:00:42]} 18. f3 {[%clk 0:01:39]}  Nf6 {[%clk 0:00:36]} 19. Rf1 {[%clk 0:01:37]}  Nd7 {[%clk 0:00:36]} 20. f4 {[%clk 0:01:26]}  gxf4 {[%clk 0:00:25]} 21. exf4 {[%clk 0:01:22]}  Nxe5 {[%clk 0:00:24]} 22. fxe5 {[%clk 0:01:18]}  Bd7 {[%clk 0:00:21]} 23. Bf4 {[%clk 0:01:15]}  Qe7 {[%clk 0:00:21]} 24. b4 {[%clk 0:01:09]}  Be8 {[%clk 0:00:20]} 25. Qe2 {[%clk 0:01:08]}  Qh4 {[%clk 0:00:18]} 26. Kh2 {[%clk 0:01:05]}  a6 {[%clk 0:00:15]} 27. a4 {[%clk 0:01:04]}  Kh8 {[%clk 0:00:13]} 28. Qe3 {[%clk 0:00:58]}  Rg8 {[%clk 0:00:12]} 29. Be2 {[%clk 0:00:48]}  Kh7 {[%clk 0:00:10]} 30. Rb1 {[%clk 0:00:46]}  Bf8 {[%clk 0:00:06]} 31. b5 {[%clk 0:00:45]}  axb5 {[%clk 0:00:05]} 32. axb5 {[%clk 0:00:46]}  cxb5 {[%clk 0:00:05]} 33. Bg3 {[%clk 0:00:28]}  Qg5 {[%clk 0:00:04]} 34. Qf4 {[%clk 0:00:20]}  Qxf4 {[%clk 0:00:03]} 35. Bxf4 {[%clk 0:00:20]}  Ra5 {[%clk 0:00:03]} 36. Rb2 {[%clk 0:00:19]}  Bc6 {[%clk 0:00:01]} 37. Rfb1 {[%clk 0:00:19]}  Be7 {[%clk 0:00:02]} 38. Bxb5 {[%clk 0:00:19]}  Bg5 {[%clk 0:00:02]} 39. Bxg5 {[%clk 0:00:16]}  Rxg5 {[%clk 0:00:02]} 40. Bxc6 {[%clk 0:00:17]}  bxc6 {[%clk 0:00:02]} 41. Rb7+ {[%clk 0:00:17]}  Rg7 {[%clk 0:00:03]} 42. Rxg7+ {[%clk 0:00:17]}  Kxg7 {[%clk 0:00:03]} 43. Rb6 {[%clk 0:00:16]}  Ra4 {[%clk 0:00:04]} 44. Rxc6 {[%clk 0:00:17]}  Rxd4 {[%clk 0:00:04]} 45. Rxe6 {[%clk 0:00:18]}  Rc4 {[%clk 0:00:05]} 46. c6 {[%clk 0:00:18]}  d4 {[%clk 0:00:05]} 47. Rd6 {[%clk 0:00:17]}  d3 {[%clk 0:00:04]} 48. Rd7+ {[%clk 0:00:17]}  Kg6 {[%clk 0:00:04]} 49. c7 {[%clk 0:00:18]}  d2 {[%clk 0:00:04]} 50. e6 {[%clk 0:00:16]}  Rxc7 {[%clk 0:00:04]} 51. Rxd2 {[%clk 0:00:14]}  Kf6 {[%clk 0:00:04]} 52. Re2 {[%clk 0:00:11]}  Re7 {[%clk 0:00:04]} 53. Kg3 {[%clk 0:00:11]}  Rxe6 {[%clk 0:00:04]} 54. Rxe6+ {[%clk 0:00:11]}  Kxe6 {[%clk 0:00:05]} 55. Kh4 {[%clk 0:00:08]}  Kf6 {[%clk 0:00:05]} 56. Kh5 {[%clk 0:00:08]}  Kg7 {[%clk 0:00:05]} 57. Kh4 {[%clk 0:00:09]}  Kg6 {[%clk 0:00:06]} 58. Kg3 {[%clk 0:00:10]}  Kg5 {[%clk 0:00:06]} 59. Kf3 {[%clk 0:00:11]}  Kg6 {[%clk 0:00:06]} 60. Ke3 {[%clk 0:00:10]}  Kg5 {[%clk 0:00:06]} 61. Kf3 {[%clk 0:00:10]}  Kg6 {[%clk 0:00:06]} 62. Kf4 {[%clk 0:00:11]}  Kf6 {[%clk 0:00:07]} 63. g3 {[%clk 0:00:11]}  Ke6 {[%clk 0:00:07]} 64. Ke3 {[%clk 0:00:09]}  Ke5 {[%clk 0:00:07]} 65. Kf3 {[%clk 0:00:10]}  Ke6 {[%clk 0:00:07]} 66. Kf4 {[%clk 0:00:10]}  Kf6 {[%clk 0:00:07]} 67. h4 {[%clk 0:00:11]}  Ke6 {[%clk 0:00:06]} 68. Ke3 {[%clk 0:00:11]}  Ke5 {[%clk 0:00:06]} 69. Kf3 {[%clk 0:00:11]}  Ke6 {[%clk 0:00:07]} 70. Ke2 {[%clk 0:00:10]}  Ke5 {[%clk 0:00:07]} 71. Ke3 {[%clk 0:00:11]}  Ke6 {[%clk 0:00:07]} 72. Kd4 {[%clk 0:00:11]}  Kd6 {[%clk 0:00:07]} 73. Ke3 {[%clk 0:00:10]}  Ke5 {[%clk 0:00:08]} 74. Kf3 {[%clk 0:00:10]}  Ke6 {[%clk 0:00:08]} 75. Kf4 {[%clk 0:00:11]}  Kf6 {[%clk 0:00:08]} 76. Ke3 {[%clk 0:00:08]}  Ke5 {[%clk 0:00:09]} 1/2-1/2


[Site "https://www.chess.com"]

[Event "Titled Tuesday Blitz March 28 Late 2023"]
[White "Goltsev, Dmitry"]
[Black "Hajiyev, Kanan"]
[WhiteFideId "24176710"]
[BlackFideId "13404148"]
[WhiteElo "2336"]
[BlackElo "2103"]
[Result "1-0"]
[Round "04"]
[TimeControl "180+2"]
[Date "2023.03.28"]
[WhiteClock "0:01:09"]
[BlackClock "0:00:04"]

1. e4 {[%clk 0:02:59]}  c6 {[%clk 0:02:48]} 2. d4 {[%clk 0:02:58]}  d5 {[%clk 0:02:48]} 3. Nc3 {[%clk 0:02:58]}  a6 {[%clk 0:02:49]} 4. Nf3 {[%clk 0:02:57]}  Bg4 {[%clk 0:02:48]} 5. h3 {[%clk 0:02:57]}  Bh5 {[%clk 0:02:44]} 6. e5 {[%clk 0:02:55]}  e6 {[%clk 0:02:44]} 7. Bd3 {[%clk 0:02:54]}  c5 {[%clk 0:02:42]} 8. dxc5 {[%clk 0:02:49]}  Bxc5 {[%clk 0:02:39]} 9. O-O {[%clk 0:02:48]}  Nc6 {[%clk 0:02:38]} 10. Bf4 {[%clk 0:02:47]}  Nd4 {[%clk 0:02:27]} 11. g4 {[%clk 0:02:39]}  Nxf3+ {[%clk 0:02:10]} 12. Qxf3 {[%clk 0:02:40]}  Bg6 {[%clk 0:02:10]} 13. Rad1 {[%clk 0:02:40]}  Ne7 {[%clk 0:01:47]} 14. Bxg6 {[%clk 0:02:35]}  Nxg6 {[%clk 0:01:44]} 15. Ne4 {[%clk 0:02:35]}  Qc7 {[%clk 0:01:26]} 16. Nd6+ {[%clk 0:02:23]}  Bxd6 {[%clk 0:01:19]} 17. exd6 {[%clk 0:02:24]}  Qd7 {[%clk 0:01:16]} 18. Bg3 {[%clk 0:02:18]}  Rc8 {[%clk 0:01:03]} 19. c3 {[%clk 0:02:09]}  O-O {[%clk 0:01:02]} 20. Rfe1 {[%clk 0:02:09]}  b5 {[%clk 0:00:59]} 21. Re3 {[%clk 0:02:05]}  Rc4 {[%clk 0:00:56]} 22. b3 {[%clk 0:02:03]}  Rc6 {[%clk 0:00:55]} 23. h4 {[%clk 0:02:04]}  Rfc8 {[%clk 0:00:52]} 24. h5 {[%clk 0:02:01]}  Nf8 {[%clk 0:00:52]} 25. g5 {[%clk 0:02:00]}  Rxd6 {[%clk 0:00:38]} 26. h6 {[%clk 0:01:53]}  Rdc6 {[%clk 0:00:35]} 27. Be5 {[%clk 0:01:48]}  Ng6 {[%clk 0:00:21]} 28. Bxg7 {[%clk 0:01:48]}  Nh4 {[%clk 0:00:19]} 29. Qf4 {[%clk 0:01:37]}  Nf5 {[%clk 0:00:19]} 30. Bd4 {[%clk 0:01:25]}  Qc7 {[%clk 0:00:16]} 31. Be5 {[%clk 0:01:23]}  Qe7 {[%clk 0:00:12]} 32. Re2 {[%clk 0:01:20]}  Qa7 {[%clk 0:00:07]} 33. Rde1 {[%clk 0:01:14]}  Qd7 {[%clk 0:00:05]} 34. Bd4 {[%clk 0:01:10]}  Qc7 {[%clk 0:00:04]} 35. Qxf5 {[%clk 0:01:09]} 1-0


[Site "https://www.chess.com"]

[Event "Titled Tuesday Blitz March 28 Late 2023"]
[White "Karas, Marek"]
[Black "Schmakel, Sam"]
[WhiteFideId "14928558"]
[BlackFideId "2039311"]
[WhiteElo "2233"]
[BlackElo "2356"]
[Result "0-1"]
[Round "04"]
[TimeControl "180+2"]
[Date "2023.03.28"]
[WhiteClock "0:00:11"]
[BlackClock "0:00:18"]

1. d4 {[%clk 0:03:00]}  d5 {[%clk 0:02:59]} 2. c4 {[%clk 0:02:57]}  e6 {[%clk 0:02:59]} 3. Nf3 {[%clk 0:02:49]}  c6 {[%clk 0:02:59]} 4. g3 {[%clk 0:02:45]}  dxc4 {[%clk 0:02:59]} 5. Bg2 {[%clk 0:02:46]}  b5 {[%clk 0:02:59]} 6. O-O {[%clk 0:02:46]}  Bb7 {[%clk 0:02:59]} 7. a4 {[%clk 0:02:44]}  a6 {[%clk 0:02:59]} 8. e4 {[%clk 0:02:40]}  Nd7 {[%clk 0:02:57]} 9. b3 {[%clk 0:02:39]}  cxb3 {[%clk 0:02:57]} 10. Qxb3 {[%clk 0:02:38]}  Ngf6 {[%clk 0:02:48]} 11. Re1 {[%clk 0:02:35]}  Be7 {[%clk 0:02:46]} 12. Ba3 {[%clk 0:02:25]}  O-O {[%clk 0:02:43]} 13. Bxe7 {[%clk 0:02:19]}  Qxe7 {[%clk 0:02:44]} 14. Nc3 {[%clk 0:02:18]}  Rab8 {[%clk 0:02:20]} 15. Bf1 {[%clk 0:01:58]}  b4 {[%clk 0:02:12]} 16. Nb1 {[%clk 0:01:51]}  c5 {[%clk 0:02:11]} 17. d5 {[%clk 0:01:46]}  exd5 {[%clk 0:02:08]} 18. exd5 {[%clk 0:01:45]}  Bxd5 {[%clk 0:01:53]} 19. Bc4 {[%clk 0:01:31]}  Bxc4 {[%clk 0:01:42]} 20. Qxc4 {[%clk 0:01:32]}  Qd6 {[%clk 0:01:43]} 21. Nbd2 {[%clk 0:01:26]}  h6 {[%clk 0:01:25]} 22. a5 {[%clk 0:01:23]}  Qc6 {[%clk 0:01:16]} 23. Nd4 {[%clk 0:01:15]}  Qd5 {[%clk 0:01:11]} 24. Qxd5 {[%clk 0:01:08]}  Nxd5 {[%clk 0:01:12]} 25. Nc6 {[%clk 0:01:07]}  Rbc8 {[%clk 0:01:02]} 26. Ne7+ {[%clk 0:01:07]}  Nxe7 {[%clk 0:01:02]} 27. Rxe7 {[%clk 0:01:07]}  Nf6 {[%clk 0:00:56]} 28. Nc4 {[%clk 0:01:06]}  Rfe8 {[%clk 0:00:53]} 29. Ra7 {[%clk 0:01:00]}  Rc6 {[%clk 0:00:52]} 30. Rb1 {[%clk 0:00:46]}  Nd5 {[%clk 0:00:39]} 31. Rd1 {[%clk 0:00:37]}  Nf6 {[%clk 0:00:26]} 32. Rb1 {[%clk 0:00:31]}  Rb8 {[%clk 0:00:24]} 33. Nb6 {[%clk 0:00:30]}  c4 {[%clk 0:00:15]} 34. Rxb4 {[%clk 0:00:19]}  c3 {[%clk 0:00:16]} 35. Rb1 {[%clk 0:00:19]}  c2 {[%clk 0:00:16]} 36. Rc1 {[%clk 0:00:19]}  Rd8 {[%clk 0:00:16]} 37. Ra8 {[%clk 0:00:19]}  Rxa8 {[%clk 0:00:17]} 38. Nxa8 {[%clk 0:00:19]}  Nd5 {[%clk 0:00:17]} 39. Kf1 {[%clk 0:00:14]}  Nb4 {[%clk 0:00:17]} 40. Ke2 {[%clk 0:00:14]}  Na2 {[%clk 0:00:17]} 41. Kd2 {[%clk 0:00:14]}  Nxc1 {[%clk 0:00:18]} 42. Kxc1 {[%clk 0:00:15]}  Rc5 {[%clk 0:00:17]} 43. Nb6 {[%clk 0:00:15]}  Rxa5 {[%clk 0:00:17]} 44. Kxc2 {[%clk 0:00:12]}  Ra2+ {[%clk 0:00:17]} 45. Kd3 {[%clk 0:00:12]}  Rxf2 {[%clk 0:00:18]} 46. Ke4 {[%clk 0:00:11]}  Rxh2 {[%clk 0:00:18]} 0-1


[Site "https://www.chess.com"]

[Event "Titled Tuesday Blitz March 28 Late 2023"]
[White "EREBUNI91"]
[Black "Risteski, Emil"]
[BlackFideId "15005267"]
[WhiteElo "2707"]
[BlackElo "2251"]
[Result "0-1"]
[Round "04"]
[TimeControl "180+2"]
[Date "2023.03.28"]
[WhiteClock "0:00:07"]
[BlackClock "0:00:09"]

1. e4 {[%clk 0:03:00]}  d6 {[%clk 0:02:58]} 2. d4 {[%clk 0:03:00]}  Nf6 {[%clk 0:02:59]} 3. Nc3 {[%clk 0:03:01]}  e5 {[%clk 0:02:59]} 4. Nf3 {[%clk 0:03:00]}  Nbd7 {[%clk 0:02:59]} 5. Bc4 {[%clk 0:03:00]}  Be7 {[%clk 0:02:58]} 6. O-O {[%clk 0:02:49]}  h6 {[%clk 0:02:56]} 7. Re1 {[%clk 0:02:48]}  c6 {[%clk 0:02:53]} 8. a4 {[%clk 0:02:48]}  Qc7 {[%clk 0:02:53]} 9. h3 {[%clk 0:02:45]}  g5 {[%clk 0:02:51]} 10. Qe2 {[%clk 0:02:42]}  Nf8 {[%clk 0:02:50]} 11. d5 {[%clk 0:02:40]}  Ng6 {[%clk 0:02:45]} 12. Nh2 {[%clk 0:02:37]}  Nf4 {[%clk 0:02:36]} 13. Qf3 {[%clk 0:02:35]}  h5 {[%clk 0:02:33]} 14. dxc6 {[%clk 0:02:31]}  bxc6 {[%clk 0:02:29]} 15. h4 {[%clk 0:02:29]}  Bg4 {[%clk 0:02:11]} 16. Qe3 {[%clk 0:01:53]}  gxh4 {[%clk 0:02:07]} 17. b4 {[%clk 0:01:54]}  Rg8 {[%clk 0:02:02]} 18. Kh1 {[%clk 0:01:49]}  h3 {[%clk 0:01:55]} 19. g3 {[%clk 0:01:37]}  Ng2 {[%clk 0:01:55]} 20. Qd2 {[%clk 0:01:36]}  Nxe1 {[%clk 0:01:54]} 21. Qxe1 {[%clk 0:01:37]}  Be6 {[%clk 0:01:42]} 22. Bd3 {[%clk 0:01:35]}  Ng4 {[%clk 0:01:35]} 23. b5 {[%clk 0:01:35]}  c5 {[%clk 0:01:19]} 24. a5 {[%clk 0:01:33]}  c4 {[%clk 0:01:13]} 25. Bf1 {[%clk 0:01:24]}  h4 {[%clk 0:01:03]} 26. Nxg4 {[%clk 0:01:17]}  Bxg4 {[%clk 0:01:00]} 27. Be3 {[%clk 0:01:15]}  hxg3 {[%clk 0:00:58]} 28. fxg3 {[%clk 0:01:16]}  Be6 {[%clk 0:00:46]} 29. Kh2 {[%clk 0:01:10]}  Bg5 {[%clk 0:00:41]} 30. Bf2 {[%clk 0:01:08]}  Rb8 {[%clk 0:00:18]} 31. b6 {[%clk 0:01:05]}  axb6 {[%clk 0:00:18]} 32. axb6 {[%clk 0:01:05]}  Rxb6 {[%clk 0:00:18]} 33. Qe2 {[%clk 0:00:45]}  Rb8 {[%clk 0:00:17]} 34. Qh5 {[%clk 0:00:45]}  Ke7 {[%clk 0:00:16]} 35. Ra7 {[%clk 0:00:46]}  Qxa7 {[%clk 0:00:15]} 36. Bxa7 {[%clk 0:00:45]}  Rb2 {[%clk 0:00:15]} 37. Qd1 {[%clk 0:00:44]}  Ra8 {[%clk 0:00:13]} 38. Bf2 {[%clk 0:00:42]}  Ra3 {[%clk 0:00:12]} 39. Nb5 {[%clk 0:00:41]}  Raa2 {[%clk 0:00:11]} 40. Qh5 {[%clk 0:00:18]}  Bf6 {[%clk 0:00:08]} 41. Nc3 {[%clk 0:00:16]}  Ra3 {[%clk 0:00:07]} 42. Nb5 {[%clk 0:00:11]}  Rxb5 {[%clk 0:00:07]} 43. Bxh3 {[%clk 0:00:09]}  Bxh3 {[%clk 0:00:07]} 44. Kxh3 {[%clk 0:00:10]}  Rb2 {[%clk 0:00:05]} 45. Qe2 {[%clk 0:00:11]}  Raa2 {[%clk 0:00:05]} 46. Be3 {[%clk 0:00:04]}  Rxc2 {[%clk 0:00:05]} 47. Qd1 {[%clk 0:00:04]}  c3 {[%clk 0:00:06]} 48. Qd5 {[%clk 0:00:04]}  Rh2+ {[%clk 0:00:05]} 49. Kg4 {[%clk 0:00:04]}  Rab2 {[%clk 0:00:05]} 50. Qc6 {[%clk 0:00:05]}  c2 {[%clk 0:00:05]} 51. Qc7+ {[%clk 0:00:05]}  Kf8 {[%clk 0:00:05]} 52. Kf5 {[%clk 0:00:06]}  Kg7 {[%clk 0:00:05]} 53. Ba7 {[%clk 0:00:03]}  Rb3 {[%clk 0:00:05]} 54. Qxc2 {[%clk 0:00:02]}  Rf3+ {[%clk 0:00:04]} 55. Kg4 {[%clk 0:00:02]}  Rxc2 {[%clk 0:00:05]} 56. Kxf3 {[%clk 0:00:02]}  Rc6 {[%clk 0:00:06]} 57. Be3 {[%clk 0:00:01]}  Bd8 {[%clk 0:00:07]} 58. Kg4 {[%clk 0:00:02]}  Bb6 {[%clk 0:00:08]} 59. Kf5 {[%clk 0:00:03]}  Bxe3 {[%clk 0:00:08]} 60. g4 {[%clk 0:00:03]}  Bd4 {[%clk 0:00:08]} 61. g5 {[%clk 0:00:04]}  Rc5 {[%clk 0:00:08]} 62. g6 {[%clk 0:00:05]}  fxg6+ {[%clk 0:00:08]} 63. Ke6 {[%clk 0:00:06]}  d5 {[%clk 0:00:08]} 64. exd5 {[%clk 0:00:06]}  e4 {[%clk 0:00:08]} 65. d6 {[%clk 0:00:06]}  Rc6 {[%clk 0:00:08]} 66. Kd5 {[%clk 0:00:07]}  Rxd6+ {[%clk 0:00:09]} 67. Kc4 {[%clk 0:00:06]}  e3 {[%clk 0:00:09]} 68. Kd3 {[%clk 0:00:07]}  Re6 {[%clk 0:00:09]} 0-1


[Site "https://www.chess.com"]

[Event "Titled Tuesday Blitz March 28 Late 2023"]
[White "Skvortsov, Andrei"]
[Black "Sztokbant, Bernardo Vainzoff"]
[WhiteFideId "24108600"]
[BlackFideId "2115956"]
[WhiteElo "2259"]
[BlackElo "2222"]
[Result "1-0"]
[Round "04"]
[TimeControl "180+2"]
[Date "2023.03.28"]
[WhiteClock "0:01:01"]
[BlackClock "0:00:47"]

1. e4 {[%clk 0:03:00]}  c5 {[%clk 0:03:00]} 2. d4 {[%clk 0:03:00]}  cxd4 {[%clk 0:03:00]} 3. Qxd4 {[%clk 0:03:01]}  Nc6 {[%clk 0:03:00]} 4. Qd3 {[%clk 0:03:02]}  Nf6 {[%clk 0:03:00]} 5. Nc3 {[%clk 0:03:02]}  g6 {[%clk 0:03:00]} 6. Nf3 {[%clk 0:03:02]}  Bg7 {[%clk 0:02:58]} 7. Be2 {[%clk 0:03:03]}  O-O {[%clk 0:02:58]} 8. O-O {[%clk 0:03:04]}  d6 {[%clk 0:02:57]} 9. Nd5 {[%clk 0:03:04]}  Be6 {[%clk 0:02:49]} 10. c3 {[%clk 0:03:03]}  Nd7 {[%clk 0:02:44]} 11. Rd1 {[%clk 0:03:03]}  Bg4 {[%clk 0:02:39]} 12. Bg5 {[%clk 0:02:58]}  Re8 {[%clk 0:02:37]} 13. a4 {[%clk 0:02:44]}  Rc8 {[%clk 0:02:34]} 14. Qd2 {[%clk 0:02:30]}  Nc5 {[%clk 0:02:31]} 15. Qf4 {[%clk 0:02:21]}  Bxf3 {[%clk 0:02:21]} 16. Qxf3 {[%clk 0:02:22]}  Qd7 {[%clk 0:02:11]} 17. Qe3 {[%clk 0:02:17]}  b6 {[%clk 0:02:02]} 18. Bb5 {[%clk 0:02:04]}  a6 {[%clk 0:01:45]} 19. Nxb6 {[%clk 0:02:03]}  Qe6 {[%clk 0:01:45]} 20. Bc4 {[%clk 0:01:56]}  Qxe4 {[%clk 0:01:43]} 21. Qxe4 {[%clk 0:01:30]}  Nxe4 {[%clk 0:01:44]} 22. Nxc8 {[%clk 0:01:20]}  Nxg5 {[%clk 0:01:44]} 23. Bxa6 {[%clk 0:01:20]}  Ne6 {[%clk 0:01:34]} 24. Nb6 {[%clk 0:01:17]}  Nc5 {[%clk 0:01:32]} 25. Bb5 {[%clk 0:01:17]}  Rb8 {[%clk 0:01:31]} 26. Nd5 {[%clk 0:01:09]}  Ne5 {[%clk 0:01:24]} 27. Nxe7+ {[%clk 0:01:08]}  Kf8 {[%clk 0:01:24]} 28. Nd5 {[%clk 0:01:06]}  Nb3 {[%clk 0:01:19]} 29. Ra3 {[%clk 0:01:04]}  Na5 {[%clk 0:01:20]} 30. h3 {[%clk 0:01:02]}  Nec4 {[%clk 0:01:16]} 31. Ra2 {[%clk 0:01:02]}  Bh6 {[%clk 0:00:47]} 32. b4 {[%clk 0:01:01]} 1-0


[Site "https://www.chess.com"]